[Event "*** SCC Grand Prix: Titled Tuesday Blitz"]
[Site "Chess.com"]
[Date "2020.07.07"]
[Round "6"]
[White "vanImpe"]
[Black "csati17"]
[Result "0-1"]
[WhiteElo "2449"]
[BlackElo "2646"]
[TimeControl "180+1"]
[EndTime "11:04:03 PDT"]
[Termination "csati17 won by resignation"]

1. g3 {[%clk 0:03:00.2]} 1... d5 {[%clk 0:03:00.1]} 2. Bg2 {[%clk 0:03:00.3]}
2... Nf6 {[%clk 0:03:00.7]} 3. c4 {[%clk 0:03:00.6]} 3... c6 {[%clk 0:03:00.3]}
4. Nf3 {[%clk 0:03:00.3]} 4... e6 {[%clk 0:02:58.3]} 5. O-O {[%clk 0:02:58.6]}
5... Nbd7 {[%clk 0:02:58.7]} 6. d4 {[%clk 0:02:58.1]} 6... Be7 {[%clk
0:02:57.3]} 7. Nbd2 {[%clk 0:02:58.1]} 7... O-O {[%clk 0:02:57.5]} 8. Qc2 {[%clk
0:02:58.7]} 8... b6 {[%clk 0:02:57.4]} 9. Rd1 {[%clk 0:02:59.3]} 9... Ba6 {[%clk
0:02:54.1]} 10. b3 {[%clk 0:02:58.9]} 10... Rc8 {[%clk 0:02:53.5]} 11. e4 {[%clk
0:02:59.5]} 11... c5 {[%clk 0:02:50.1]} 12. exd5 {[%clk 0:02:59.7]} 12... exd5
{[%clk 0:02:49.2]} 13. Qf5 {[%clk 0:03:00.3]} 13... g6 {[%clk 0:02:46.5]} 14.
Qh3 {[%clk 0:02:59.7]} 14... Qc7 {[%clk 0:02:26.1]} 15. Bb2 {[%clk 0:02:55.7]}
15... Rce8 {[%clk 0:02:09.5]} 16. Rac1 {[%clk 0:02:54.4]} 16... Bc8 {[%clk
0:02:09.3]} 17. cxd5 {[%clk 0:02:49.1]} 17... Nxd5 {[%clk 0:02:03.4]} 18. Qh6
{[%clk 0:02:39]} 18... Bf6 {[%clk 0:02:02.6]} 19. Ng5 {[%clk 0:02:33.6]} 19...
Bxg5 {[%clk 0:01:59.3]} 20. Qxg5 {[%clk 0:02:33.9]} 20... Nb4 {[%clk 0:01:46.4]}
21. Ne4 {[%clk 0:02:08.5]} 21... f5 {[%clk 0:01:42.7]} 22. Nc3 {[%clk
0:01:58.1]} 22... Bb7 {[%clk 0:01:25.5]} 23. dxc5 {[%clk 0:01:54.2]} 23... Bxg2
{[%clk 0:01:13]} 24. Kxg2 {[%clk 0:01:53.7]} 24... Qc6+ {[%clk 0:01:03.5]} 25.
Kg1 {[%clk 0:01:52.5]} 25... Ne5 {[%clk 0:01:03]} 26. Nd5 {[%clk 0:01:24.4]}
26... Nf3+ {[%clk 0:00:56.8]} 0-1

[Event "*** SCC Grand Prix: Titled Tuesday Blitz"]
[Site "Chess.com"]
[Date "2020.07.07"]
[Round "6"]
[White "Iskusnyh"]
[Black "whodee11"]
[Result "1-0"]
[WhiteElo "2452"]
[BlackElo "2316"]
[TimeControl "180+1"]
[EndTime "11:04:07 PDT"]
[Termination "Iskusnyh won by resignation"]

1. d4 {[%clk 0:03:00.9]} 1... Nf6 {[%clk 0:02:57.8]} 2. c4 {[%clk 0:03:00.5]}
2... g6 {[%clk 0:02:58.2]} 3. g3 {[%clk 0:03:00.7]} 3... Bg7 {[%clk 0:02:59.1]}
4. Bg2 {[%clk 0:03:01.2]} 4... O-O {[%clk 0:03:00]} 5. Nc3 {[%clk 0:03:00.8]}
5... d6 {[%clk 0:03:00.9]} 6. Nf3 {[%clk 0:03:01.1]} 6... Nbd7 {[%clk
0:03:01.8]} 7. O-O {[%clk 0:03:00.5]} 7... e5 {[%clk 0:03:02.7]} 8. e3 {[%clk
0:03:00.8]} 8... Qe7 {[%clk 0:02:58.1]} 9. a4 {[%clk 0:03:00.6]} 9... Re8 {[%clk
0:02:55.9]} 10. b3 {[%clk 0:03:00.4]} 10... Nf8 {[%clk 0:02:52.9]} 11. Ba3
{[%clk 0:02:54.4]} 11... e4 {[%clk 0:02:51.8]} 12. Nd2 {[%clk 0:02:48.8]} 12...
Bf5 {[%clk 0:02:51.9]} 13. c5 {[%clk 0:02:42.6]} 13... Qd7 {[%clk 0:02:49.8]}
14. cxd6 {[%clk 0:02:40.7]} 14... cxd6 {[%clk 0:02:50.7]} 15. Nc4 {[%clk
0:02:31.6]} 15... Rac8 {[%clk 0:02:47.7]} 16. Nb5 {[%clk 0:02:19.5]} 16... d5
{[%clk 0:02:38.5]} 17. Ncd6 {[%clk 0:02:18.5]} 17... Bg4 {[%clk 0:02:31.4]} 18.
Qd2 {[%clk 0:02:15]} 18... h5 {[%clk 0:02:28.8]} 19. Nxc8 {[%clk 0:02:05.9]}
19... Rxc8 {[%clk 0:02:27.1]} 20. Rac1 {[%clk 0:01:59.2]} 20... Rxc1 {[%clk
0:02:26.2]} 21. Rxc1 {[%clk 0:01:58.5]} 21... a6 {[%clk 0:02:26.2]} 22. Nd6
{[%clk 0:01:36.3]} 22... Ne6 {[%clk 0:02:18.1]} 23. h3 {[%clk 0:01:25.3]} 23...
Bf3 {[%clk 0:02:17.4]} 24. Qc3 {[%clk 0:01:15.6]} 24... Kh7 {[%clk 0:02:05.9]}
25. Qc8 {[%clk 0:01:13.9]} 25... Qe7 {[%clk 0:02:01.7]} 26. Nb5 {[%clk
0:01:13.4]} 26... Qe8 {[%clk 0:01:49]} 27. Qxe8 {[%clk 0:01:10]} 27... Nxe8
{[%clk 0:01:49.9]} 28. Nd6 {[%clk 0:01:09.2]} 28... Nxd6 {[%clk 0:01:49.2]} 29.
Bxd6 {[%clk 0:01:08.4]} 29... Bxd4 {[%clk 0:01:49.2]} 30. Bxf3 {[%clk
0:01:01.5]} 30... exf3 {[%clk 0:01:48.2]} 31. exd4 {[%clk 0:01:01.3]} 31... Nxd4
{[%clk 0:01:49.1]} 32. Rc7 {[%clk 0:01:00.9]} 1-0

[Event "*** SCC Grand Prix: Titled Tuesday Blitz"]
[Site "Chess.com"]
[Date "2020.07.07"]
[Round "6"]
[White "MrChampion_Coach"]
[Black "EnergeticHay"]
[Result "1-0"]
[WhiteElo "2415"]
[BlackElo "2244"]
[TimeControl "180+1"]
[EndTime "11:04:09 PDT"]
[Termination "MrChampion_Coach won by checkmate"]

1. c4 {[%clk 0:03:00.9]} 1... Nf6 {[%clk 0:03:00.3]} 2. Nc3 {[%clk 0:03:00.1]}
2... g6 {[%clk 0:03:00.9]} 3. g3 {[%clk 0:02:59.9]} 3... Bg7 {[%clk 0:03:01.2]}
4. Bg2 {[%clk 0:03:00.4]} 4... O-O {[%clk 0:03:01.7]} 5. h4 {[%clk 0:02:59.7]}
5... d6 {[%clk 0:02:57.8]} 6. d3 {[%clk 0:02:55.7]} 6... h5 {[%clk 0:02:56.4]}
7. Nh3 {[%clk 0:02:53.9]} 7... c5 {[%clk 0:02:54.4]} 8. Ng5 {[%clk 0:02:53.6]}
8... Nc6 {[%clk 0:02:55]} 9. a3 {[%clk 0:02:42.1]} 9... e5 {[%clk 0:02:49.1]}
10. Bd2 {[%clk 0:02:32.7]} 10... a6 {[%clk 0:02:47.4]} 11. Rb1 {[%clk
0:02:23.6]} 11... Rb8 {[%clk 0:02:46.3]} 12. b4 {[%clk 0:02:23.8]} 12... cxb4
{[%clk 0:02:46.6]} 13. axb4 {[%clk 0:02:24.7]} 13... Bd7 {[%clk 0:02:44.9]} 14.
b5 {[%clk 0:02:23.7]} 14... axb5 {[%clk 0:02:44.5]} 15. Nxb5 {[%clk 0:02:24.1]}
15... Nd4 {[%clk 0:02:45.1]} 16. Nxd4 {[%clk 0:02:10.9]} 16... exd4 {[%clk
0:02:46]} 17. O-O {[%clk 0:01:58.9]} 17... Bc6 {[%clk 0:02:42.1]} 18. Bf4 {[%clk
0:01:48.2]} 18... Qd7 {[%clk 0:02:35.8]} 19. Bh3 {[%clk 0:01:40.9]} 19... Qe7
{[%clk 0:02:34.1]} 20. Qd2 {[%clk 0:01:33.3]} 20... b5 {[%clk 0:02:30.2]} 21.
Qb4 {[%clk 0:00:56.9]} 21... bxc4 {[%clk 0:02:23]} 22. Qxb8 {[%clk 0:00:57.8]}
22... Rxb8 {[%clk 0:02:22.8]} 23. Rxb8+ {[%clk 0:00:58.7]} 23... Bf8 {[%clk
0:02:23.1]} 24. dxc4 {[%clk 0:00:53.2]} 24... Nd7 {[%clk 0:02:16.3]} 25. Rc8
{[%clk 0:00:49.3]} 25... Ba4 {[%clk 0:01:54.5]} 26. Bg2 {[%clk 0:00:36]} 26...
Ne5 {[%clk 0:01:50.6]} 27. Bd5 {[%clk 0:00:33.9]} 27... Bd7 {[%clk 0:01:48.9]}
28. Rc7 {[%clk 0:00:32.5]} 28... Qd8 {[%clk 0:01:46.8]} 29. Bxe5 {[%clk
0:00:30.1]} 29... Qxc7 {[%clk 0:01:46.5]} 30. Bxf7# {[%clk 0:00:30]} 1-0

[Event "*** SCC Grand Prix: Titled Tuesday Blitz"]
[Site "Chess.com"]
[Date "2020.07.07"]
[Round "6"]
[White "GukeshDommaraju"]
[Black "GadimbayliA"]
[Result "0-1"]
[WhiteElo "2712"]
[BlackElo "2899"]
[TimeControl "180+1"]
[EndTime "11:04:10 PDT"]
[Termination "GadimbayliA won on time"]

1. d4 {[%clk 0:03:00.9]} 1... d5 {[%clk 0:03:00]} 2. c4 {[%clk 0:02:33]} 2... e5
{[%clk 0:02:59.3]} 3. dxe5 {[%clk 0:02:30.4]} 3... d4 {[%clk 0:03:00.2]} 4. Nf3
{[%clk 0:02:29.5]} 4... Nc6 {[%clk 0:03:00.4]} 5. g3 {[%clk 0:02:25]} 5... Nge7
{[%clk 0:03:00.3]} 6. Bg2 {[%clk 0:02:24.7]} 6... Ng6 {[%clk 0:03:00.7]} 7. O-O
{[%clk 0:02:19.2]} 7... Ngxe5 {[%clk 0:03:00.6]} 8. Nxe5 {[%clk 0:02:18.1]} 8...
Nxe5 {[%clk 0:03:01.5]} 9. Bf4 {[%clk 0:02:18.6]} 9... Ng6 {[%clk 0:02:59.3]}
10. Bd2 {[%clk 0:02:07.8]} 10... h5 {[%clk 0:02:58.3]} 11. h4 {[%clk 0:02:06.4]}
11... Be7 {[%clk 0:02:58.2]} 12. e3 {[%clk 0:01:58.1]} 12... O-O {[%clk
0:02:48.5]} 13. exd4 {[%clk 0:01:58]} 13... Qxd4 {[%clk 0:02:37.1]} 14. Nc3
{[%clk 0:01:53.9]} 14... Bg4 {[%clk 0:02:19.1]} 15. Qc2 {[%clk 0:01:29.7]} 15...
Qxc4 {[%clk 0:02:18.9]} 16. Bxb7 {[%clk 0:01:28.8]} 16... Rad8 {[%clk
0:02:13.7]} 17. Be3 {[%clk 0:01:12.2]} 17... Ne5 {[%clk 0:02:10.4]} 18. Qe4
{[%clk 0:01:08.6]} 18... Qe6 {[%clk 0:02:07]} 19. Bd5 {[%clk 0:01:06.7]} 19...
Nf3+ {[%clk 0:02:02.5]} 20. Qxf3 {[%clk 0:00:56]} 20... Bxf3 {[%clk 0:02:03.4]}
21. Bxe6 {[%clk 0:00:25.6]} 21... fxe6 {[%clk 0:02:04.3]} 0-1

[Event "*** SCC Grand Prix: Titled Tuesday Blitz"]
[Site "Chess.com"]
[Date "2020.07.07"]
[Round "6"]
[White "Evachess2006"]
[Black "DonPreuss"]
[Result "0-1"]
[WhiteElo "1618"]
[BlackElo "2186"]
[TimeControl "180+1"]
[EndTime "11:04:12 PDT"]
[Termination "DonPreuss won on time"]

1. e4 {[%clk 0:03:00.9]} 1... e5 {[%clk 0:02:59.1]} 2. Nf3 {[%clk 0:02:59.8]}
2... d5 {[%clk 0:02:59]} 3. exd5 {[%clk 0:02:49]} 3... e4 {[%clk 0:02:59.2]} 4.
Qe2 {[%clk 0:02:16]} 4... Nf6 {[%clk 0:02:58.1]} 5. d3 {[%clk 0:01:54]} 5...
Qxd5 {[%clk 0:02:56.4]} 6. Nc3 {[%clk 0:01:45.7]} 6... Bb4 {[%clk 0:02:55]} 7.
dxe4 {[%clk 0:01:19.9]} 7... Qxe4 {[%clk 0:02:44]} 8. Qxe4+ {[%clk 0:00:55]}
8... Nxe4 {[%clk 0:02:43.1]} 9. Bd2 {[%clk 0:00:55.3]} 9... Nxd2 {[%clk
0:02:41]} 10. Kxd2 {[%clk 0:00:53.8]} 10... Nc6 {[%clk 0:02:38.1]} 11. Bb5
{[%clk 0:00:52.2]} 11... Bd7 {[%clk 0:02:37.7]} 12. Rhe1+ {[%clk 0:00:46.4]}
12... Be6 {[%clk 0:02:35.5]} 13. Bxc6+ {[%clk 0:00:25.5]} 13... bxc6 {[%clk
0:02:34.9]} 14. Nd4 {[%clk 0:00:15.1]} 14... O-O-O {[%clk 0:02:34.1]} 15. Ke3
{[%clk 0:00:13.4]} 15... Bc5 {[%clk 0:02:16.3]} 16. Rad1 {[%clk 0:00:12.2]}
16... Rd7 {[%clk 0:02:13.3]} 17. Ne4 {[%clk 0:00:07.5]} 17... Bb6 {[%clk
0:02:09.4]} 18. c3 {[%clk 0:00:04.8]} 18... Rhd8 {[%clk 0:02:08.6]} 19. Rd2
{[%clk 0:00:02.5]} 19... f5 {[%clk 0:01:57.3]} 20. Ng3 {[%clk 0:00:01.2]} 20...
c5 {[%clk 0:01:53.4]} 0-1

[Event "*** SCC Grand Prix: Titled Tuesday Blitz"]
[Site "Chess.com"]
[Date "2020.07.07"]
[Round "6"]
[White "YellowJacek"]
[Black "bmt011"]
[Result "1-0"]
[WhiteElo "2258"]
[BlackElo "2113"]
[TimeControl "180+1"]
[EndTime "11:04:14 PDT"]
[Termination "YellowJacek won by resignation"]

1. e4 {[%clk 0:02:53.6]} 1... e6 {[%clk 0:02:56.1]} 2. d4 {[%clk 0:02:52.8]}
2... d5 {[%clk 0:02:55.8]} 3. Nc3 {[%clk 0:02:52.6]} 3... Nf6 {[%clk 0:02:50.8]}
4. e5 {[%clk 0:02:52.2]} 4... Nfd7 {[%clk 0:02:48.4]} 5. f4 {[%clk 0:02:52.3]}
5... c5 {[%clk 0:02:47]} 6. Nf3 {[%clk 0:02:52.8]} 6... Nc6 {[%clk 0:02:44.3]}
7. Be3 {[%clk 0:02:52.3]} 7... cxd4 {[%clk 0:02:33.7]} 8. Nxd4 {[%clk
0:02:50.5]} 8... Bc5 {[%clk 0:02:31.7]} 9. Qd2 {[%clk 0:02:50.1]} 9... Nxd4
{[%clk 0:02:31.1]} 10. Bxd4 {[%clk 0:02:49.7]} 10... Bxd4 {[%clk 0:02:23.3]} 11.
Qxd4 {[%clk 0:02:49.3]} 11... a6 {[%clk 0:02:23.2]} 12. O-O-O {[%clk 0:02:48.1]}
12... Qa5 {[%clk 0:01:58.9]} 13. Bd3 {[%clk 0:02:43.1]} 13... b5 {[%clk
0:01:52.7]} 14. Kb1 {[%clk 0:02:34.6]} 14... Qb6 {[%clk 0:01:15.5]} 15. Qxb6
{[%clk 0:02:32.7]} 15... Nxb6 {[%clk 0:01:15.9]} 16. b3 {[%clk 0:02:33.1]} 16...
Bd7 {[%clk 0:01:15]} 17. Ne2 {[%clk 0:02:31.1]} 17... Ke7 {[%clk 0:01:09.4]} 18.
Nd4 {[%clk 0:02:30.4]} 18... Rhc8 {[%clk 0:01:09.9]} 19. Kb2 {[%clk 0:02:29.3]}
19... Rc5 {[%clk 0:01:06.1]} 20. h4 {[%clk 0:02:28.4]} 20... Rac8 {[%clk
0:01:06]} 21. h5 {[%clk 0:02:28.1]} 21... a5 {[%clk 0:01:02.1]} 22. h6 {[%clk
0:02:24]} 22... g6 {[%clk 0:00:57.8]} 23. Nf3 {[%clk 0:02:23.1]} 23... f6 {[%clk
0:00:49.9]} 24. exf6+ {[%clk 0:02:22.8]} 24... Kxf6 {[%clk 0:00:50.4]} 25. Ng5
{[%clk 0:02:21]} 25... Rh8 {[%clk 0:00:44.6]} 26. Rhe1 {[%clk 0:02:19.7]} 26...
Nc8 {[%clk 0:00:27]} 27. Re3 {[%clk 0:02:13]} 27... Rc6 {[%clk 0:00:07.2]} 28.
Bxb5 {[%clk 0:02:10.4]} 1-0

[Event "*** SCC Grand Prix: Titled Tuesday Blitz"]
[Site "Chess.com"]
[Date "2020.07.07"]
[Round "6"]
[White "Maili15"]
[Black "colegiodemadrid"]
[Result "0-1"]
[WhiteElo "2247"]
[BlackElo "2416"]
[TimeControl "180+1"]
[EndTime "11:04:18 PDT"]
[Termination "colegiodemadrid won by resignation"]

1. d4 {[%clk 0:03:00.9]} 1... Nf6 {[%clk 0:02:58.1]} 2. c4 {[%clk 0:03:00.6]}
2... g6 {[%clk 0:02:58.1]} 3. Nc3 {[%clk 0:03:00.7]} 3... Bg7 {[%clk 0:02:58.5]}
4. e4 {[%clk 0:03:01]} 4... d6 {[%clk 0:02:59.2]} 5. f4 {[%clk 0:03:01.7]} 5...
O-O {[%clk 0:02:59.9]} 6. Nf3 {[%clk 0:03:02.3]} 6... Na6 {[%clk 0:02:59.5]} 7.
Be2 {[%clk 0:03:01.8]} 7... e5 {[%clk 0:03:00.1]} 8. fxe5 {[%clk 0:03:02.7]}
8... dxe5 {[%clk 0:03:00.7]} 9. d5 {[%clk 0:03:03.5]} 9... Nc5 {[%clk
0:03:00.3]} 10. Bg5 {[%clk 0:03:04.1]} 10... h6 {[%clk 0:02:55.3]} 11. Bxf6
{[%clk 0:03:04.1]} 11... Qxf6 {[%clk 0:02:54.3]} 12. b4 {[%clk 0:03:01.2]} 12...
Nd7 {[%clk 0:02:48.8]} 13. c5 {[%clk 0:02:56.3]} 13... a5 {[%clk 0:02:47.4]} 14.
a3 {[%clk 0:02:55.9]} 14... axb4 {[%clk 0:02:42.2]} 15. axb4 {[%clk 0:02:55]}
15... Rxa1 {[%clk 0:02:43.1]} 16. Qxa1 {[%clk 0:02:54.8]} 16... Qf4 {[%clk
0:02:43.1]} 17. O-O {[%clk 0:02:40.3]} 17... Qe3+ {[%clk 0:02:41.5]} 18. Kh1
{[%clk 0:02:38.8]} 18... Nf6 {[%clk 0:02:38.9]} 19. Qb2 {[%clk 0:01:09.9]} 19...
Nxe4 {[%clk 0:02:21.9]} 20. Nxe4 {[%clk 0:01:09]} 20... Qxe4 {[%clk 0:02:22.8]}
21. Rd1 {[%clk 0:01:08.9]} 21... Qf4 {[%clk 0:02:11]} 22. Qb3 {[%clk 0:01:01.1]}
22... e4 {[%clk 0:02:04.5]} 23. Nd4 {[%clk 0:00:58.3]} 23... Be5 {[%clk
0:02:01.1]} 24. g3 {[%clk 0:00:30.2]} 24... Qf2 {[%clk 0:02:00.9]} 25. Qc4
{[%clk 0:00:20.9]} 25... Bh3 {[%clk 0:01:55.2]} 26. Bf1 {[%clk 0:00:20.5]} 26...
Bxd4 {[%clk 0:01:48.6]} 27. Bxh3 {[%clk 0:00:17.5]} 27... Qf3+ {[%clk
0:01:48.6]} 0-1

[Event "*** SCC Grand Prix: Titled Tuesday Blitz"]
[Site "Chess.com"]
[Date "2020.07.07"]
[Round "6"]
[White "FMVolodymyrSakun"]
[Black "Twitch_ElhamBlitz05"]
[Result "0-1"]
[WhiteElo "2512"]
[BlackElo "2802"]
[TimeControl "180+1"]
[EndTime "11:04:22 PDT"]
[Termination "Twitch_ElhamBlitz05 won by checkmate"]

1. e4 {[%clk 0:03:00.9]} 1... c5 {[%clk 0:03:00.9]} 2. Nf3 {[%clk 0:03:00.5]}
2... Nc6 {[%clk 0:03:01.8]} 3. Bb5 {[%clk 0:02:59.2]} 3... g6 {[%clk 0:03:00.9]}
4. O-O {[%clk 0:02:58.6]} 4... Bg7 {[%clk 0:02:54.4]} 5. Bxc6 {[%clk 0:02:58.4]}
5... bxc6 {[%clk 0:02:50.5]} 6. h3 {[%clk 0:02:59.3]} 6... Nh6 {[%clk
0:02:49.9]} 7. d3 {[%clk 0:02:52.8]} 7... O-O {[%clk 0:02:49.6]} 8. Re1 {[%clk
0:02:51]} 8... f5 {[%clk 0:02:49.4]} 9. e5 {[%clk 0:02:49.4]} 9... Nf7 {[%clk
0:02:49]} 10. Nc3 {[%clk 0:02:49.6]} 10... e6 {[%clk 0:02:45.9]} 11. Na4 {[%clk
0:02:38.6]} 11... g5 {[%clk 0:02:39.4]} 12. Nxc5 {[%clk 0:02:23.9]} 12... h5
{[%clk 0:02:34.7]} 13. d4 {[%clk 0:02:19.9]} 13... g4 {[%clk 0:02:35.6]} 14. Nh2
{[%clk 0:02:15.3]} 14... d6 {[%clk 0:02:34.8]} 15. Nd3 {[%clk 0:02:05.4]} 15...
dxe5 {[%clk 0:02:32.7]} 16. dxe5 {[%clk 0:02:03.8]} 16... Nxe5 {[%clk
0:02:32.1]} 17. Nxe5 {[%clk 0:01:38.8]} 17... Qxd1 {[%clk 0:02:33]} 18. Rxd1
{[%clk 0:01:39.4]} 18... Bxe5 {[%clk 0:02:33.9]} 19. Rb1 {[%clk 0:01:24.5]}
19... Kf7 {[%clk 0:02:31.7]} 20. b3 {[%clk 0:01:22.8]} 20... Ba6 {[%clk
0:02:30.2]} 21. Bb2 {[%clk 0:01:21.1]} 21... Bxb2 {[%clk 0:02:28]} 22. Rxb2
{[%clk 0:01:20.9]} 22... Rfd8 {[%clk 0:02:28.6]} 23. Rbb1 {[%clk 0:01:20.4]}
23... Kf6 {[%clk 0:02:29.3]} 24. hxg4 {[%clk 0:01:13.5]} 24... hxg4 {[%clk
0:02:29.3]} 25. Nf1 {[%clk 0:01:13.6]} 25... f4 {[%clk 0:02:30]} 26. c4 {[%clk
0:01:09.1]} 26... c5 {[%clk 0:02:29.6]} 27. g3 {[%clk 0:00:57.8]} 27... e5
{[%clk 0:02:29.1]} 28. f3 {[%clk 0:00:38.8]} 28... gxf3 {[%clk 0:02:28.1]} 29.
Kf2 {[%clk 0:00:38.9]} 29... fxg3+ {[%clk 0:02:24.6]} 30. Nxg3 {[%clk
0:00:38.3]} 30... Bb7 {[%clk 0:02:25.5]} 31. Rh1 {[%clk 0:00:21.5]} 31... Rd2+
{[%clk 0:02:22.3]} 32. Ke3 {[%clk 0:00:21.7]} 32... Rad8 {[%clk 0:02:22.7]} 33.
Ne4+ {[%clk 0:00:16.6]} 33... Bxe4 {[%clk 0:02:20.7]} 34. Kxe4 {[%clk
0:00:17.5]} 34... R2d3 {[%clk 0:02:14.1]} 35. Rh6+ {[%clk 0:00:11.5]} 35... Kg5
{[%clk 0:02:13.7]} 36. Re6 {[%clk 0:00:11.6]} 36... R8d4+ {[%clk 0:02:13.9]} 37.
Kxe5 {[%clk 0:00:11.9]} 37... Re3# {[%clk 0:02:14.8]} 0-1

[Event "*** SCC Grand Prix: Titled Tuesday Blitz"]
[Site "Chess.com"]
[Date "2020.07.07"]
[Round "6"]
[White "if_name_main_a"]
[Black "tylityli"]
[Result "0-1"]
[WhiteElo "2384"]
[BlackElo "2194"]
[TimeControl "180+1"]
[EndTime "11:04:24 PDT"]
[Termination "tylityli won by resignation"]

1. c4 {[%clk 0:03:00.9]} 1... c5 {[%clk 0:02:59.6]} 2. Nf3 {[%clk 0:03:00.7]}
2... Nf6 {[%clk 0:02:58.6]} 3. Nc3 {[%clk 0:03:00.4]} 3... d5 {[%clk 0:02:55.1]}
4. cxd5 {[%clk 0:03:00.5]} 4... Nxd5 {[%clk 0:02:56]} 5. e3 {[%clk 0:02:59.6]}
5... Nc6 {[%clk 0:02:55.6]} 6. Bb5 {[%clk 0:02:59.3]} 6... e6 {[%clk 0:02:54.3]}
7. O-O {[%clk 0:02:59]} 7... Be7 {[%clk 0:02:54.1]} 8. Ne5 {[%clk 0:02:56.8]}
8... Bd7 {[%clk 0:02:45.4]} 9. Bxc6 {[%clk 0:02:55.4]} 9... Bxc6 {[%clk
0:02:42.7]} 10. Nxc6 {[%clk 0:02:55.3]} 10... bxc6 {[%clk 0:02:43.6]} 11. Qa4
{[%clk 0:02:55.6]} 11... Qd7 {[%clk 0:02:40.3]} 12. b3 {[%clk 0:02:46]} 12...
Nb4 {[%clk 0:02:33.2]} 13. Ba3 {[%clk 0:02:36]} 13... Nd3 {[%clk 0:02:29.9]} 14.
Qc4 {[%clk 0:02:21.5]} 14... O-O {[%clk 0:02:20.2]} 15. Na4 {[%clk 0:02:15.2]}
15... Qd5 {[%clk 0:02:05]} 16. Qc2 {[%clk 0:02:13.1]} 16... Nb4 {[%clk
0:01:59.5]} 17. Bxb4 {[%clk 0:02:12.5]} 17... cxb4 {[%clk 0:01:59.1]} 18. Rac1
{[%clk 0:02:13.3]} 18... Rac8 {[%clk 0:01:56.6]} 19. d4 {[%clk 0:02:05.2]} 19...
e5 {[%clk 0:01:52.8]} 20. Rfd1 {[%clk 0:02:00.8]} 20... e4 {[%clk 0:01:52.6]}
21. Qc4 {[%clk 0:01:58.2]} 21... Bd6 {[%clk 0:01:38.1]} 22. Rc2 {[%clk
0:01:55.9]} 22... Qh5 {[%clk 0:01:29]} 23. f3 {[%clk 0:01:01.7]} 23... Qxh2+
{[%clk 0:01:21.9]} 24. Kf1 {[%clk 0:00:46.6]} 24... Qh1+ {[%clk 0:01:15.9]} 25.
Ke2 {[%clk 0:00:43.4]} 25... Qxg2+ {[%clk 0:01:15.4]} 26. Ke1 {[%clk 0:00:43.6]}
26... Bg3+ {[%clk 0:01:15.1]} 0-1

[Event "*** SCC Grand Prix: Titled Tuesday Blitz"]
[Site "Chess.com"]
[Date "2020.07.07"]
[Round "6"]
[White "PotapovaM"]
[Black "Ave_Mariia"]
[Result "0-1"]
[WhiteElo "2485"]
[BlackElo "2354"]
[TimeControl "180+1"]
[EndTime "11:04:30 PDT"]
[Termination "Ave_Mariia won by resignation"]

1. d4 {[%clk 0:03:00.9]} 1... Nf6 {[%clk 0:02:59.1]} 2. c4 {[%clk 0:03:01.5]}
2... e6 {[%clk 0:02:58.6]} 3. Nf3 {[%clk 0:03:01.1]} 3... d5 {[%clk 0:02:54.9]}
4. g3 {[%clk 0:02:57.2]} 4... dxc4 {[%clk 0:02:52.3]} 5. Bg2 {[%clk 0:02:57.2]}
5... a6 {[%clk 0:02:51.7]} 6. O-O {[%clk 0:02:57.6]} 6... Nc6 {[%clk 0:02:50.4]}
7. e3 {[%clk 0:02:57.5]} 7... Rb8 {[%clk 0:02:50]} 8. Nfd2 {[%clk 0:02:58.2]}
8... e5 {[%clk 0:02:47.2]} 9. Bxc6+ {[%clk 0:02:58.7]} 9... bxc6 {[%clk
0:02:48.1]} 10. dxe5 {[%clk 0:02:59.3]} 10... Ng4 {[%clk 0:02:47]} 11. Nxc4
{[%clk 0:02:59.5]} 11... Be6 {[%clk 0:02:43.6]} 12. Nbd2 {[%clk 0:03:00.2]}
12... h5 {[%clk 0:02:41.1]} 13. h3 {[%clk 0:02:28.6]} 13... h4 {[%clk
0:02:29.8]} 14. hxg4 {[%clk 0:02:28.5]} 14... hxg3 {[%clk 0:02:28.4]} 15. fxg3
{[%clk 0:02:28.7]} 15... Qd3 {[%clk 0:02:15.8]} 16. b3 {[%clk 0:01:32.6]} 16...
Bd5 {[%clk 0:02:13.1]} 17. Kf2 {[%clk 0:00:47.2]} 17... Rh2+ {[%clk 0:02:09.1]}
18. Ke1 {[%clk 0:00:47.2]} 18... Bb4 {[%clk 0:01:36.4]} 19. Rg1 {[%clk
0:00:04.7]} 19... Bxc4 {[%clk 0:01:34.2]} 20. bxc4 {[%clk 0:00:04.7]} 20...
Qxe3+ {[%clk 0:01:32.3]} 0-1

[Event "*** SCC Grand Prix: Titled Tuesday Blitz"]
[Site "Chess.com"]
[Date "2020.07.07"]
[Round "6"]
[White "Stormeman100100"]
[Black "comsac"]
[Result "1-0"]
[WhiteElo "2427"]
[BlackElo "2243"]
[TimeControl "180+1"]
[EndTime "11:04:32 PDT"]
[Termination "Stormeman100100 won by resignation"]

1. d4 {[%clk 0:03:00.9]} 1... d5 {[%clk 0:03:00.1]} 2. c4 {[%clk 0:03:00]} 2...
e6 {[%clk 0:03:00.3]} 3. Nc3 {[%clk 0:02:58.8]} 3... Nf6 {[%clk 0:03:00.7]} 4.
cxd5 {[%clk 0:02:57.3]} 4... exd5 {[%clk 0:03:00.4]} 5. Bg5 {[%clk 0:02:56.6]}
5... Be7 {[%clk 0:03:00.5]} 6. e3 {[%clk 0:02:56.5]} 6... c6 {[%clk 0:02:59.8]}
7. Bd3 {[%clk 0:02:51.4]} 7... Nbd7 {[%clk 0:02:59.1]} 8. Qc2 {[%clk 0:02:50.8]}
8... O-O {[%clk 0:02:59]} 9. Nf3 {[%clk 0:02:48.5]} 9... Re8 {[%clk 0:02:58.1]}
10. O-O {[%clk 0:02:47.7]} 10... h6 {[%clk 0:02:58.5]} 11. Bh4 {[%clk
0:02:45.2]} 11... Ne4 {[%clk 0:02:58.7]} 12. Bxe7 {[%clk 0:02:39.3]} 12... Qxe7
{[%clk 0:02:59.6]} 13. Rab1 {[%clk 0:02:27.1]} 13... a5 {[%clk 0:02:58.2]} 14.
Bxe4 {[%clk 0:02:21.1]} 14... dxe4 {[%clk 0:02:57.6]} 15. Nd2 {[%clk 0:02:21]}
15... Nf6 {[%clk 0:02:57.7]} 16. Nc4 {[%clk 0:02:15.2]} 16... Ng4 {[%clk
0:02:33.6]} 17. h3 {[%clk 0:02:11.4]} 17... Nf6 {[%clk 0:02:27.3]} 18. Nb6
{[%clk 0:02:10.9]} 18... Ra6 {[%clk 0:02:25.8]} 19. Nxc8 {[%clk 0:02:09.2]}
19... Rxc8 {[%clk 0:02:26.7]} 20. Na4 {[%clk 0:02:08.8]} 20... Nd5 {[%clk
0:02:20.6]} 21. Nc5 {[%clk 0:02:05.5]} 21... Raa8 {[%clk 0:02:19.3]} 22. Qxe4
{[%clk 0:02:04.6]} 22... Qd6 {[%clk 0:01:55.2]} 23. Nxb7 {[%clk 0:01:59.8]}
23... Qb4 {[%clk 0:01:55.5]} 24. Nc5 {[%clk 0:01:57.6]} 24... Qd2 {[%clk
0:01:50.8]} 25. Rfd1 {[%clk 0:01:54.3]} 25... Qe2 {[%clk 0:01:50.1]} 26. Qd3
{[%clk 0:01:43.8]} 26... Qh5 {[%clk 0:01:48.7]} 27. a3 {[%clk 0:01:39.3]} 27...
Rab8 {[%clk 0:01:48]} 28. Rdc1 {[%clk 0:01:31.9]} 28... Nf6 {[%clk 0:01:41.4]}
29. Ne4 {[%clk 0:01:28]} 29... Nd5 {[%clk 0:01:31.7]} 30. Rc5 {[%clk 0:01:23.6]}
30... Qf5 {[%clk 0:01:18.5]} 31. Qc2 {[%clk 0:01:19.2]} 31... Rc7 {[%clk
0:01:18.7]} 32. Ng3 {[%clk 0:01:08.3]} 32... Qg6 {[%clk 0:01:15.4]} 33. Qxg6
{[%clk 0:01:05.4]} 33... fxg6 {[%clk 0:01:15.7]} 34. Rxa5 {[%clk 0:01:05.1]}
34... Rcb7 {[%clk 0:01:15]} 35. b4 {[%clk 0:01:02.5]} 35... Nc3 {[%clk
0:01:14.9]} 36. Rc1 {[%clk 0:01:00.1]} 1-0